Cogmind - Beta 13 @@@ ROGUE MODE // 2024.03.08 @ 16:59:34 // Winter2022/Polymind Player: Minty Result: Destroyed by B-86 Titan via exploding Power Conduit Performance ------------- Evolutions (6) 3000 Regions Visited (13) 2600 Robots Destroyed (32) 160 Value Destroyed (1440) 1440 Prototype IDs (26) 520 Alien Tech Used (0) 0 Bonus (7176) 7176 TOTAL SCORE: 14716 Bonus ------- Polymind Skill 5805 High Alert Combat Kills 55 Follower Combat Kills 49 Entered DSFs 1000 Aligned with FarCom 300 Friendly Fire -33 Cogmind --------- Core Integrity 0/1150 Matter 0/0 Energy 99/100 System Corruption 0% Temperature Cool (33) Movement Core (50) Location -4/Factory Parts ------- > --- POWER (1) -------- (None) > --- PROPULSION (4) --- (None) > --- UTILITY (3) ------ (None) > --- WEAPON (0) ------- (None) > --- INVENTORY (0) ---- (None) Peak State ------------ > --- POWER ------------ Light Fission Core > --- PROPULSION ------- Flexi-carbon Leg Flexi-carbon Leg > --- UTILITY ---------- Targeting Computer Targeting Computer Phase Shifter > --- WEAPON ----------- Heavy Assault Rifle Gauss Rifle Gauss Rifle > --- INVENTORY -------- (None) [Rating: 32] Favorites ----------- Power Light Nuclear Core Engine Improved Ion Engine Power Core Light Nuclear Core Propulsion Aluminum Leg Treads Light Treads Leg Aluminum Leg Wheel Compact Wheel Hover Unit Improved Hover Unit Flight Unit VTOL Module Utility Heat Sink Device Heat Sink Storage Medium Storage Unit Processor Targeting Computer Hackware Hacking Suite Protection Light Armor Plating Weapon Heavy Assault Rifle Energy Gun Particle Gun Ballistic Gun Heavy Assault Rifle Special Melee Weapon Improved Datajack Build | -11 -10 -10 -10 -9 -8 -7 -7 -6 -6 -6 -5 -5 -4 ------- Run | Yrd Mat Min Exi Min Mat Fac DSF Fac Was Fac Fac DSF Fac Slots Evolved . | . . . . . . . . . . . . . . Power . | . . . . . . . . . . . . . . Propulsion . | . . . . . . . . . . . . . . Utility . | . . . . . . . . . . . . . . Weapon . | . . . . . . . . . . . . . . Parts Attached . | . . . . . . . . . . . . . . Power . | . . . . . . . . . . . . . . Engine . | . . . . . . . . . . . . . . Core . | . . . . . . . . . . . . . . Reactor . | . . . . . . . . . . . . . . Propulsion . | . . . . . . . . . . . . . . Treads . | . . . . . . . . . . . . . . Leg . | . . . . . . . . . . . . . . Wheel . | . . . . . . . . . . . . . . Hover . | . . . . . . . . . . . . . . Flight . | . . . . . . . . . . . . . . Utility . | . . . . . . . . . . . . . . Device . | . . . . . . . . . . . . . . Storage . | . . . . . . . . . . . . . . Processor . | . . . . . . . . . . . . . . Hackware . | . . . . . . . . . . . . . . Protection . | . . . . . . . . . . . . . . Artifact . | . . . . . . . . . . . . . . Weapon . | . . . . . . . . . . . . . . Energy Gun . | . . . . . . . . . . . . . . Energy Cannon . | . . . . . . . . . . . . . . Ballistic Gun . | . . . . . . . . . . . . . . Ballistic Cannon . | . . . . . . . . . . . . . . Launcher . | . . . . . . . . . . . . . . Special Weapon . | . . . . . . . . . . . . . . Impact Weapon . | . . . . . . . . . . . . . . Slashing Weapon . | . . . . . . . . . . . . . . Piercing Weapon . | . . . . . . . . . . . . . . Special Melee Weapon . | . . . . . . . . . . . . . . Unidentified Prototypes . | . . . . . . . . . . . . . . Parts Lost 32 | . . . . 4 6 . . . . 6 . 3 13 Power 6 | . . . . 1 1 . . . . 1 . 1 2 Propulsion 12 | . . . . 2 2 . . . . . . 1 7 Utility 7 | . . . . . 2 . . . . 2 . 1 2 Weapon 7 | . . . . 1 1 . . . . 3 . . 2 Highest Loss Streak 6 | . . . . 4 3 . . . . 6 . 3 6 To Critical Strikes . | . . . . . . . . . . . . . . Average Slot Usage (%) 78 | . 93 100 100 95 85 33 . . . 71 85 73 51 Engine 4 | . 6 . . . 10 6 . . . 3 14 11 2 Core 6 | . 10 20 20 14 . . . . . 4 . . 4 Treads 6 | . 13 . . . 19 . . . . . . . . Leg 13 | . 21 40 40 30 . . . . . 11 . . . Wheel 1 | . . . . . . 13 . . . . . . 8 Hover 4 | . . . . 10 2 . . . . 7 28 23 4 Flight 1 | . . . . . . . . . . . . . 7 Device 13 | . 17 20 20 15 19 6 . . . 6 . . 3 Processor 2 | . 6 . . . . 6 . . . 11 . . . Hackware 3 | . . . . . . . . . . 7 28 23 5 Protection 2 | . . . . . 7 . . . . . . . . Energy Gun 8 | . 10 20 20 14 10 . . . . . . . . Ballistic Gun 7 | . . . . 10 13 . . . . 14 . . 4 Special Melee Weapon 1 | . . . . . . . . . . 3 14 14 5 Naked Turns 337 | . 11 . . 3 36 83 15 18 33 84 . . 54 Heaviest Build 26 | . 15 9 9 9 18 6 . . . 19 6 6 26 Greatest Support 64 | 3 46 20 20 20 40 20 3 3 3 40 14 14 64 Greatest Overweight (x) 3 | . . . . . 2 . . . . . . . 3 Average Overweight (x) . | . . . . . . . . . . . . . . Largest Inventory Capacity 12 | . 6 1 1 1 1 12 . . . 1 1 1 6 Average Capacity 1 | . 2 1 1 . . 4 . . . . 1 1 2 Most Carried 12 | . 6 . 1 1 . 12 . . . . . . 5 Average Carried . | . 1 . . . . 4 . . . . . . 1 Final Capacity 1 | . 1 1 1 1 . . . . . 1 1 1 . Final Carried 1 | . . . 1 . . . . . . . . . . Class Distribution -------------------- 28% | Grunt 24% | Sentry 13% | Operator 11% | Cogmind 7% | Hunter 4% | Recycler 3% | Knight Dominant Class ---------------- Grunt | -10/Materials Grunt | -10/Mines Grunt | -10/Exiles Grunt | -9/Mines Sentry | -8/Materials Cogmind | -7/Factory Cogmind | -7/DSF Cogmind | -6/Factory Cogmind | -6/Waste Hunter | -6/Factory Operator | -5/Factory Operator | -5/DSF Operator | -4/Factory Resources | -11 -10 -10 -10 -9 -8 -7 -7 -6 -6 -6 -5 -5 -4 ----------- Run | Yrd Mat Min Exi Min Mat Fac DSF Fac Was Fac Fac DSF Fac Matter Collected 203 | . . . . 21 44 . . . . 138 . . . Remotely . | . . . . . . . . . . . . . . Salvage Created 1161 | . 242 . . 122 367 . . . . 258 . . 172 Parts 80 | . 21 . . 6 26 . . . . 16 . . 11 Haulers Intercepted 1 | . 1 . . . . . . . . . . . . Recyclers Shooed 1 | . . . . 1 . . . . . . . . . Parts Field Recycled . | . . . . . . . . . . . . . . Retrieved Matter . | . . . . . . . . . . . . . . Parts Self-Destructed . | . . . . . . . . . . . . . . Prevented . | . . . . . . . . . . . . . . Kills | -11 -10 -10 -10 -9 -8 -7 -7 -6 -6 -6 -5 -5 -4 ------- Run | Yrd Mat Min Exi Min Mat Fac DSF Fac Was Fac Fac DSF Fac Combat Hostiles Destroyed 26 | . 3 . . 4 13 . . . . 4 . . 2 Guns 22 | . 3 . . 4 11 . . . . 4 . . . AOE 4 | . . . . . 2 . . . . . . . 2 Classes Destroyed 9 | . 5 . . 1 2 . . . . 1 . . . Worker 2 | . 1 . . . . . . . . 1 . . . Builder 1 | . 1 . . . . . . . . . . . . Hauler 1 | . 1 . . . . . . . . . . . . Operator 1 | . . . . . 1 . . . . . . . . Watcher 1 | . 1 . . . . . . . . . . . . Swarmer 3 | . . . . 3 . . . . . . . . . Grunt 15 | . 3 . . 1 10 . . . . 1 . . . Sentry 3 | . . . . . 3 . . . . . . . . Hunter 5 | . . . . . . . . . . 3 . . 2 Best Kill Streak 6 | . 6 . . 2 5 . . . . 2 . . 2 Combat Bots Only 4 | . 2 . . 2 4 . . . . 2 . . 2 Max Kills in Single Turn 2 | . 1 . . 1 2 . . . . 1 . . 2 Gunslinging . | . . . . . . . . . . . . . . Exploded 2 | . . . . . 2 . . . . . . . 2 Melee . | . . . . . . . . . . . . . . Uniques/NPCs Destroyed . | . . . . . . . . . . . . . . Combat | -11 -10 -10 -10 -9 -8 -7 -7 -6 -6 -6 -5 -5 -4 -------- Run | Yrd Mat Min Exi Min Mat Fac DSF Fac Was Fac Fac DSF Fac Hostile Shots Fired 434 | . 3 . . 63 109 . 1 . 2 106 . 7 143 Missed 146 | . 2 . . 20 26 . . . . 42 . 4 52 Damage Taken 4974 | . 18 . . 548 1273 . 56 . 76 856 . 231 1916 Core 2283 | . . . . 211 498 . 56 . 76 130 . 125 1187 Absorbed by Shields 18 | . . . . . . . . . . . . . 18 Ignored by Resistances 187 | . . . . . . . . . . 187 . . . Core Remaining (%) 63 | 100 . . . 15 9 . 92 . . 75 . 87 . Volleys Fired 129 | . 18 . . 27 42 . . . . 30 . . 12 Largest 3 | . 1 . . 1 2 . . . . 3 . . 1 Hottest 79 | . 65 . . 65 79 . . . . 79 . . 23 Shots Fired 183 | . 18 . . 27 75 . . . . 51 . . 12 Gun 183 | . 18 . . 27 75 . . . . 51 . . 12 Cannon . | . . . . . . . . . . . . . . Launcher . | . . . . . . . . . . . . . . Special . | . . . . . . . . . . . . . . Kinetic 111 | . . . . 6 42 . . . . 51 . . 12 Thermal 72 | . 18 . . 21 33 . . . . . . . . Explosive . | . . . . . . . . . . . . . . Electromagnetic . | . . . . . . . . . . . . . . Robot Hit Streak 11 | . 3 . . 5 10 . . . . 11 . . 8 Robot Miss Streak 3 | . 3 . . 3 2 . . . . 3 . . 2 Penetration Max 1 | . . . . . . . . . . 1 . . . Secondary Targets 5 | . . . . . 4 . . . . 1 . . . Max Gunslinging Chain 1 | . . . . . 1 . . . . 1 . . . Shots Hit Robots 122 | . 9 . . 13 55 . . . . 34 . 1 10 Core Hits 63 | . 8 . . 6 26 . . . . 15 . . 8 Critical Kills . | . . . . . . . . . . . . . . Critical Parts Destroyed . | . . . . . . . . . . . . . . Critical Strikes 1 | . . . . . 1 . . . . . . . . Burn 1 | . . . . . 1 . . . . . . . . Melee Attacks 3 | . . . . . . . . . . 1 . 1 1 Impact . | . . . . . . . . . . . . . . Slashing . | . . . . . . . . . . . . . . Piercing . | . . . . . . . . . . . . . . Sneak Attacks 3 | . . . . . . . . . . 1 . 1 1 Combat Hostiles 1 | . . . . . . . . . . . . 1 . Follow-up Attacks . | . . . . . . . . . . . . . . Damage Inflicted 2717 | . 151 . . 235 1161 . . . . 645 . . 525 Guns 2016 | . 151 . . 231 854 . . . . 640 . . 140 Cannons . | . . . . . . . . . . . . . . Explosions 697 | . . . . . 307 . . . . 5 . . 385 Melee . | . . . . . . . . . . . . . . Ramming 4 | . . . . 4 . . . . . . . . . Kinetic 1284 | . . . . 23 481 . . . . 640 . . 140 Thermal 1079 | . 151 . . 208 373 . . . . 5 . . 342 Explosive 307 | . . . . . 307 . . . . . . . . Electromagnetic 43 | . . . . . . . . . . . . . 43 Impact . | . . . . . . . . . . . . . . Slashing . | . . . . . . . . . . . . . . Piercing . | . . . . . . . . . . . . . . Highest Corruption 7 | . . . . . . . . . 6 7 . . . Average Corruption 6 | . . . . . . . . . 6 6 . . . Corruption Purged 5 | . . . . . . . . . . 5 . . . Corruption Blocked . | . . . . . . . . . . . . . . Effects 11 | . . . . . . . . . 1 10 . . . Message Errors 3 | . . . . . . . . . . 3 . . . Matter Fused 1 | . . . . . . . . . . 1 . . . Heat Flow Errors 3 | . . . . . . . . . 1 2 . . . Energy Discharges 1 | . . . . . . . . . . 1 . . . Data Loss (minor) 1 | . . . . . . . . . . 1 . . . Alerts 2 | . . . . . . . . . . 2 . . . Overload Shots . | . . . . . . . . . . . . . . Overflow Damage 131 | . . . . . 53 . . . . 78 . . . Projectiles . | . . . . . . . . . . . . . . Explosions 131 | . . . . . 53 . . . . 78 . . . Melee . | . . . . . . . . . . . . . . Knockbacks . | . . . . . . . . . . . . . . Impact . | . . . . . . . . . . . . . . Kinetic . | . . . . . . . . . . . . . . Secondary . | . . . . . . . . . . . . . . Self-Inflicted Damage 91 | . . . . . . . . . . 91 . . . Shots 1 | . . . . . . . . . . 1 . . . Rammed 3 | . . . . 3 . . . . . . . . . Targets Rammed 4 | . . . . 4 . . . . . . . . . Kicked 1 | . . . . 1 . . . . . . . . . Crushed . | . . . . . . . . . . . . . . Highest Temperature 216 | . 8 . . 16 216 . . . 76 213 . . 31 Average Temperature 54 | . 4 . . 7 70 . . . 48 55 . . 15 Received Heat Transfer 1150 | . 9 . . 214 693 . . . . 108 . . 126 Siege Activations . | . . . . . . . . . . . . . . Robots Corrupted . | . . . . . . . . . . . . . . Combat Hostiles . | . . . . . . . . . . . . . . Parts Fried . | . . . . . . . . . . . . . . Impact Corruptions . | . . . . . . . . . . . . . . Robots Melted . | . . . . . . . . . . . . . . Combat Hostiles . | . . . . . . . . . . . . . . Parts Melted . | . . . . . . . . . . . . . . Heat Transferred 2113 | . 333 . . 518 962 . . . . 50 . . 250 Parts Sabotaged . | . . . . . . . . . . . . . . Parts Stolen . | . . . . . . . . . . . . . . Parts Stripped . | . . . . . . . . . . . . . . Power Chain Reactions . | . . . . . . . . . . . . . . Alert | -11 -10 -10 -10 -9 -8 -7 -7 -6 -6 -6 -5 -5 -4 ------- Run | Yrd Mat Min Exi Min Mat Fac DSF Fac Was Fac Fac DSF Fac Peak Influence 589 | . 92 35 . 325 589 323 226 118 56 356 174 121 167 Initial 263 | . . 35 . . 126 263 226 118 41 39 174 121 47 Average 169 | . 20 35 . 243 256 300 226 118 46 159 174 112 72 Maximum Alert Level 2 | . . . . 1 2 1 1 . . 1 . . . Low Security (%) 69 | . 100 100 . 23 63 . . 100 100 62 100 100 100 Level 1 23 | . . . . 76 11 100 100 . . 37 . . . Level 2 7 | . . . . . 24 . . . . . . . . Level 3 . | . . . . . . . . . . . . . . Level 4 . | . . . . . . . . . . . . . . Level 5 . | . . . . . . . . . . . . . . High Security . | . . . . . . . . . . . . . . Max Security . | . . . . . . . . . . . . . . Squads Dispatched 19 | . . . . . 6 4 . . . 4 . . 5 Investigation 15 | . . . . . 6 4 . . . 1 . . 4 Extermination 1 | . . . . . . . . . . . . . 1 Reinforcement 3 | . . . . . . . . . . 3 . . . Assault . | . . . . . . . . . . . . . . Garrison . | . . . . . . . . . . . . . . Intercept . | . . . . . . . . . . . . . . Searches Triggered . | . . . . . . . . . . . . . . Construction Impeded . | . . . . . . . . . . . . . . Haulers Reinforced 1 | . . . . . . . . . . 1 . . . Active Scanning Responses . | . . . . . . . . . . . . . . Cargo Convoy Interrupts . | . . . . . . . . . . . . . . Stealth | -11 -10 -10 -10 -9 -8 -7 -7 -6 -6 -6 -5 -5 -4 --------- Run | Yrd Mat Min Exi Min Mat Fac DSF Fac Was Fac Fac DSF Fac Distress Signals 5 | . . . . 1 2 . . . . 2 . . . Communications Jammed . | . . . . . . . . . . . . . . Distress Signals . | . . . . . . . . . . . . . . Times Spotted 108 | . 4 . . 39 21 . 1 . 6 16 . 1 20 Peak Tracking Total 24 | . 2 . . 24 5 . 1 . 6 4 . 1 8 Tactical Retreats 13 | . . . . 4 2 . . . . 5 . . 2 Traps | -11 -10 -10 -10 -9 -8 -7 -7 -6 -6 -6 -5 -5 -4 ------- Run | Yrd Mat Min Exi Min Mat Fac DSF Fac Was Fac Fac DSF Fac Traps Triggered 2 | . . . . . . . . 1 . . . . 1 Indirectly . | . . . . . . . . . . . . . . Trap Hack Attempts 123 | . . . . . . . . . . 3 37 10 73 Triggered . | . . . . . . . . . . . . . . Disarmed 4 | . . . . . . . . . . . . 4 . Reprogrammed 9 | . . . . . . . . . . 1 4 . 4 Reused . | . . . . . . . . . . . . . . Traps Extracted . | . . . . . . . . . . . . . . Installed . | . . . . . . . . . . . . . . Triggered . | . . . . . . . . . . . . . . Objects Rigged 17 | . . . . . 4 10 . . . . . . 3 Exploded 3 | . . . . . 1 . . . . . . . 2 Time Bombs Activated 1 | . . . . . . . . . . 1 . . . Exploded 1 | . . . . . . . . . . 1 . . . Machines | -11 -10 -10 -10 -9 -8 -7 -7 -6 -6 -6 -5 -5 -4 ---------- Run | Yrd Mat Min Exi Min Mat Fac DSF Fac Was Fac Fac DSF Fac Machines Disabled 9 | . . . . 1 2 . . . . 2 . . 4 Max in Single Turn 3 | . . . . 1 1 . . . . 2 . . 3 Machines Repaired . | . . . . . . . . . . . . . . Machines Dismantled . | . . . . . . . . . . . . . . Machines Sabotaged 2 | . . . . . 2 . . . . . . . . Overloaded Fab Kills . | . . . . . . . . . . . . . . Hacking | -11 -10 -10 -10 -9 -8 -7 -7 -6 -6 -6 -5 -5 -4 --------- Run | Yrd Mat Min Exi Min Mat Fac DSF Fac Was Fac Fac DSF Fac Machines Accessed 24 | . . . 2 . 6 6 . . . 3 1 . 6 Terminals 14 | . . . . . 6 2 . . . . 1 . 5 Fabricators 4 | . . . . . . 2 . . . 2 . . . Repair Stations . | . . . . . . . . . . . . . . Recycling Units 1 | . . . . . . . . . . . . . 1 Scanalyzers 2 | . . . . . . 2 . . . . . . . Garrison Access 1 | . . . . . . . . . . 1 . . . Total Hacks 61 | . . . 2 . 18 15 . . . 6 1 . 19 Successful 29 | . . . 2 . 12 6 . . . 2 1 . 6 Failed 32 | . . . . . 6 9 . . . 4 . . 13 Catastrophic 5 | . . . . . . 3 . . . 1 . . 1 Database Lockouts . | . . . . . . . . . . . . . . Manual 51 | . . . 1 . 18 11 . . . 6 . . 15 Terminals 41 | . . . . . 18 6 . . . . 1 . 16 Fabricators 9 | . . . . . . 6 . . . 3 . . . Repair Stations . | . . . . . . . . . . . . . . Recycling Units 3 | . . . . . . . . . . . . . 3 Scanalyzers 3 | . . . . . . 3 . . . . . . . Garrison Access 3 | . . . . . . . . . . 3 . . . Terminal Hacks 11 | . . . 2 . 4 1 . . . . 1 . 3 Record 1 | . . . 1 . . . . . . . . . . Prototype ID Bank 1 | . . . . . . . . . . . . . 1 Open DSF 3 | . . . . . . 1 . . . . 1 . 1 Branch Access Points 1 | . . . . . 1 . . . . . . . . Alert Level 2 | . . . . . 1 . . . . . . . 1 Zone Layout 2 | . . . . . 2 . . . . . . . . Derelict Proto ID Bank 1 | . . . 1 . . . . . . . . . . Fabricator Hacks 1 | . . . . . . 1 . . . . . . . Network Status 1 | . . . . . . 1 . . . . . . . Repair Station Hacks . | . . . . . . . . . . . . . . Recycling Unit Hacks . | . . . . . . . . . . . . . . Scanalyzer . | . . . . . . . . . . . . . . Garrison Access Hacks . | . . . . . . . . . . . . . . Unauthorized Hacks 16 | . . . . . 8 4 . . . 2 . . 2 Terminals 12 | . . . . . 8 2 . . . . . . 2 Botnet 3 | . . . . . 1 1 . . . . . . 1 Detonate 3 | . . . . . 1 1 . . . . . . 1 Sabotage 5 | . . . . . 5 . . . . . . . . Search 1 | . . . . . 1 . . . . . . . . Fabricators 3 | . . . . . . 1 . . . 2 . . . Liberate 1 | . . . . . . . . . . 1 . . . Fabnet 2 | . . . . . . 1 . . . 1 . . . Repair Stations . | . . . . . . . . . . . . . . Recycling Units . | . . . . . . . . . . . . . . Scanalyzers 1 | . . . . . . 1 . . . . . . . Extract 1 | . . . . . . 1 . . . . . . . Garrison Access . | . . . . . . . . . . . . . . Data Cores Recovered . | . . . . . . . . . . . . . . Used . | . . . . . . . . . . . . . . Hacking Detections 20 | . . . . . 6 5 . . . 3 . . 6 Full Trace Events 8 | . . . . . . 3 . . . 1 . . 4 Feedback Events 1 | . . . . . . . . . . 1 . . . Corruption 1 | . . . . . . . . . . 1 . . . Feedback Blocked . | . . . . . . . . . . . . . . Robot Schematics Acquired . | . . . . . . . . . . . . . . Robots Built . | . . . . . . . . . . . . . . Authchips . | . . . . . . . . . . . . . . Time . | . . . . . . . . . . . . . . Total Robot Build Rating . | . . . . . . . . . . . . . . Part Schematics Acquired 5 | . . . . . . 5 . . . . . . . Parts Built . | . . . . . . . . . . . . . . Authchips . | . . . . . . . . . . . . . . Time . | . . . . . . . . . . . . . . Total Part Build Rating . | . . . . . . . . . . . . . . Parts Repaired . | . . . . . . . . . . . . . . Time . | . . . . . . . . . . . . . . Parts Recycled . | . . . . . . . . . . . . . . Recycled Matter . | . . . . . . . . . . . . . . Retrieved Matter . | . . . . . . . . . . . . . . Retrieved Components . | . . . . . . . . . . . . . . Parts Scanalyzed . | . . . . . . . . . . . . . . Part Schematics Acquired . | . . . . . . . . . . . . . . Parts Damaged . | . . . . . . . . . . . . . . Bothacking | -11 -10 -10 -10 -9 -8 -7 -7 -6 -6 -6 -5 -5 -4 ------------ Run | Yrd Mat Min Exi Min Mat Fac DSF Fac Was Fac Fac DSF Fac Used RIF Installer . | . . . . . . . . . . . . . . Robots Hacked 11 | . 2 . . . 1 1 . . . 4 . . 3 Non-combat 6 | . 1 . . . . 1 . . . 2 . . 2 Combat 5 | . 1 . . . 1 . . . . 2 . . 1 Robot Hacks Applied 13 | . 2 . . . 2 1 . . . 4 . . 4 no_distress 2 | . . . . . . . . . . 1 . . 1 locate_stockpiles 1 | . 1 . . . . . . . . . . . . find_recycling 1 | . . . . . . . . . . . . . 1 find_station 1 | . . . . . . 1 . . . . . . . find_terminals 1 | . . . . . . . . . . 1 . . . find_shortcuts 4 | . 1 . . . 1 . . . . 1 . . 1 find_garrison 3 | . . . . . 1 . . . . 1 . . 1 Relay Couplers Released . | . . . . . . . . . . . . . . Fabnet Peak Effective % 4 | . . . . . . . . 3 3 3 4 4 1 Autooverrided 1 | . . . . . . . . . . 1 . . . Robots Rewired . | . . . . . . . . . . . . . . Allies Hacked . | . . . . . . . . . . . . . . Hacks Repelled . | . . . . . . . . . . . . . . Allies | -11 -10 -10 -10 -9 -8 -7 -7 -6 -6 -6 -5 -5 -4 -------- Run | Yrd Mat Min Exi Min Mat Fac DSF Fac Was Fac Fac DSF Fac Total Allies 4 | . . 3 . . . . . . . 1 . . . Largest Group 3 | . . 3 3 3 . . . . . 1 . . . Highest-Rated Group 40 | . . 40 40 40 . . . . . 20 . . . Highest-Rated Ally 20 | . . 16 16 16 . . . . . 20 . . . Total Orders . | . . . . . . . . . . . . . . Ally Attacks 24 | . . . . 21 . . . . . 3 . . . Total Damage 248 | . . . . 216 . . . . . 32 . . . Kills 7 | . . . . 7 . . . . . . . . . Allies Corrupted . | . . . . . . . . . . . . . . Allies Melted . | . . . . . . . . . . . . . . Intel | -11 -10 -10 -10 -9 -8 -7 -7 -6 -6 -6 -5 -5 -4 ------- Run | Yrd Mat Min Exi Min Mat Fac DSF Fac Was Fac Fac DSF Fac Robot Analysis Total 9 | . 2 . . 1 1 1 . . . 2 . . 2 Derelict Logs Recovered . | . . . . . . . . . . . . . . Drone Launches . | . . . . . . . . . . . . . . Drone Recoveries . | . . . . . . . . . . . . . . Exploration | -11 -10 -10 -10 -9 -8 -7 -7 -6 -6 -6 -5 -5 -4 ------------- Run | Yrd Mat Min Exi Min Mat Fac DSF Fac Was Fac Fac DSF Fac Turns Passed 2838 | . 151 256 262 281 769 128 15 18 33 397 81 58 389 Spaces Moved 2368 | 1 92 213 218 240 264 195 30 36 66 410 76 84 443 Core 757 | 1 21 . . 22 57 165 30 36 66 127 . 15 217 Treads 200 | . 34 . . . 166 . . . . . . . . Legs 710 | . 37 213 218 135 . . . . . 107 . . . Wheels 133 | . . . . . . 30 . . . . . . 103 Hover 445 | . . . . 83 41 . . . . 176 76 69 . Flight 123 | . . . . . . . . . . . . . 123 Fastest Speed 32 | 50 50 120 120 50 50 50 50 50 50 50 56 50 32 Average Speed 83 | 50 118 120 120 92 121 54 50 50 50 70 56 55 59 Slowest Speed 200 | 50 160 120 120 120 160 80 50 50 50 120 56 60 200 Overloaded Moves . | . . . . . . . . . . . . . . Propulsion Burnouts . | . . . . . . . . . . . . . . Robots Hopped 3 | . . . . . . . . . . . . . 3 Cave-ins Triggered . | . . . . . . . . . . . . . . Exploration Rate (%) 35 | 2 18 60 60 72 37 6 42 1 73 14 2 86 18 Regions Visited 13 Branch Regions 3 Pre-discovered Areas 2 | . . . 1 1 . . . . . . . . . Known Exits Taken 2 | . . . . . . 1 . . . . 1 . . Unknown Exits Taken 7 | 1 1 1 1 1 1 . . . . 1 . . . Scrap Searched 2 | . . . . 2 . . . . . . . . . Spaces Dug . | . . . . . . . . . . . . . . Terrain Destroyed 99 | . . . . . 57 . . . . 20 . . 22 Melee . | . . . . . . . . . . . . . . Projectile 1 | . . . . . . . . . . 1 . . . AOE 98 | . . . . . 57 . . . . 19 . . 22 Terrain Rammed . | . . . . . . . . . . . . . . Walls Destroyed . | . . . . . . . . . . . . . . Machines Disabled . | . . . . . . . . . . . . . . Actions | -11 -10 -10 -10 -9 -8 -7 -7 -6 -6 -6 -5 -5 -4 --------- Run | Yrd Mat Min Exi Min Mat Fac DSF Fac Was Fac Fac DSF Fac Total 3035 | . 118 213 218 271 637 215 29 36 65 471 113 94 555 Wait 392 | . . 1 . . 332 21 . . . 26 1 . 11 Move 2350 | . 91 212 217 239 263 194 29 36 65 409 75 83 437 Hop 3 | . . . . . . . . . . . . . 3 Pick Up 9 | . 3 . 1 . . . . . . . . . 5 Fast Attach . | . . . . . . . . . . . . . . Attach . | . . . . . . . . . . . . . . Detach . | . . . . . . . . . . . . . . Swap . | . . . . . . . . . . . . . . Drop 7 | . 6 . . 1 . . . . . . . . . Fire 129 | . 18 . . 27 42 . . . . 30 . . 12 Melee 3 | . . . . . . . . . . 1 . 1 1 Ram 3 | . . . . 3 . . . . . . . . . Kick 1 | . . . . 1 . . . . . . . . . Crush . | . . . . . . . . . . . . . . Escape Stasis 13 | . . . . . . . . . . . . . 13 Rewire . | . . . . . . . . . . . . . . Trap 125 | . . . . . . . . . . 5 37 10 73 Miscellaneous . | . . . . . . . . . . . . . . Route ------- -11/Scrapyard -10/Materials -10/Mines (discovered 2 exits: [*Mat] / *Exi) -10/Exiles -9/Mines -8/Materials (discovered 2 exits: *Fac / Sto) -7/Factory -7/DSF -6/Factory -6/Waste -6/Factory -5/Factory -5/DSF -4/Factory History --------- Turn | Location | Event 1 | -11/Scrapyard | Discovered new exit (range 0) 1 | -11/Scrapyard | Entered Materials 135 | -10/Materials | Discovered new exit (range 10) 152 | -10/Materials | Entered Mines 239 | -10/Mines | Discovered new exit (range 9) 251 | -10/Mines | Assisted by bots powering up and referring to "LRC-V3" 401 | -10/Mines | Deemed a non-threat by the Exiles lab entrance 402 | -10/Mines | Discovered new exit (range 5) 408 | -10/Mines | Entered Exiles 408 | -10/Exiles | Accompanied by 3 allies 441 | -10/Exiles | Met 8R-AWN 461 | -10/Exiles | Met EX-HEX 492 | -10/Exiles | Met EX-BIN 507 | -10/Exiles | Aligned with FarCom system 508 | -10/Exiles | Given EX-Vault access code 543 | -10/Exiles | Opened EX-Vault 570 | -10/Exiles | Warned to stay clear of 0b10 Research branches 612 | -10/Exiles | Met EX-DEC 618 | -10/Exiles | Learned location of Zion (-7) 655 | -10/Exiles | Discovered new exit (range 12) 670 | -10/Exiles | Entered Mines 670 | -9/Mines | Accompanied by 3 allies 843 | -9/Mines | Lost 3 allies 854 | -9/Mines | Assembled infested the area 860 | -9/Mines | Learned location of Storage (-8) 882 | -9/Mines | Core integrity fell below 50% 886 | -9/Mines | Core integrity fell below 20% 916 | -9/Mines | Lost 4 parts (1p2n1w) 945 | -9/Mines | Discovered new exit (range 6) 951 | -9/Mines | Entered Materials 983 | -8/Materials | Identified exit to Storage 1571 | -8/Materials | Core integrity fell below 50% 1709 | -8/Materials | Discovered new exit (range 15) 1713 | -8/Materials | Core integrity fell below 20% 1720 | -8/Materials | Entered Factory 1740 | -7/Factory | Lost 3 parts (1p1n1w) 1848 | -7/Factory | Identified exit to DSF 1848 | -7/Factory | Entered DSF 1855 | -7/DSF | Discovered new exit (range 15) 1863 | -7/DSF | Entered Factory 1881 | -6/Factory | Sucked down chute 1881 | -6/Factory | Entered Waste 1895 | -6/Waste | Spotted C-40 Crusher 1896 | -6/Waste | EMP discharged 1899 | -6/Waste | Spotted C-40 Crusher 1901 | -6/Waste | Spotted C-40 Crusher 1905 | -6/Waste | Spotted C-40 Crusher 1906 | -6/Waste | Spotted C-40 Crusher 1906 | -6/Waste | Spotted C-40 Crusher 1910 | -6/Waste | Discovered new exit (range 10) 1914 | -6/Waste | Entered Factory 1924 | -6/Factory | Noticed a derelict Sapper rigging charges 2020 | -6/Factory | Spotted B-75 Beast 2234 | -6/Factory | Lost 6 parts (1p2u3w) 2281 | -6/Factory | Discovered new exit (range 10) 2311 | -6/Factory | Entered another Factory area 2392 | -5/Factory | Identified exit to DSF 2392 | -5/Factory | Entered DSF 2439 | -5/DSF | Additional patrols routed to DSF 2443 | -5/DSF | Discovered new exit (range 13) 2450 | -5/DSF | Entered Factory 2471 | -4/Factory | Lost 3 parts (1p1n1u) 2707 | -4/Factory | Lost 4 parts (1p2n1w) 2778 | -4/Factory | Core integrity fell below 50% 2788 | -4/Factory | Lost 6 parts (1p3n2u) 2839 | -4/Factory | Spotted B-86 Titan 2839 | -4/Factory | Destroyed by B-86 Titan via exploding Power Conduit Last Messages --------------- 02822_ Field strength at 82. 02823_ Field strength at 76. 02824_ Field strength at 70. 02825_ Field strength at 64. 02826_ Field strength at 58. 02826_ Slug penetrates Wall. 02827_ Field strength at 52. 02828_ Field strength at 46. 02829_ Field strength at 40. 02829_ Penetrated by Slug. 02830_ Field strength at 23. 02831_ Field strength at 17. 02832_ Field strength at 11. 02833_ Field strength at 5. 02833_ Stasis field depleted. 02833_ Penetrated by Slug. 02833_ T-07 Excavator destroyed. 02834_ Penetrated by Slug. 02834_ Slug penetrates Power Conduit. 02839_ Power Conduit explodes. Map ----- +----------------------------------------------------+ | #???????????????????# " " # ""S"" ?? | | #???????????????????# " " # "" "" ??? | | #???????????????????# " " # ??? | | #???????????????????# " " # """ ""??? | | #???????????????????# " " # """ ""??? | | #???????????????????+ " " + """ """?? | | #?????????????*?????# # # | | ##############???#?### " " # """ """ # | | # ] #??? # " " # """ """ ? | | # / #??"""" # " " # """ """?? | | + # """" #Yh" " # ??? | | # # """" # " " # ???? | | # """ """ # """" # " " # ???? | | # """ """ # # " " ########???? | | # """ """ [ # """" + " " #??????????? | | # # """" # " " #???????!??? | | # """ """ # """" # #??????????? | | # """ """????? """" # #??????????? | | # """ """?????? # #??????????? | | # ????? """" # #??????????? | | #########????? """" # #??????????? | | #????????????#??"""" # #??????????? | | #????????????# """" ; #??????????? | | ##############! ;* +??????????? | | # # ; #??????????? | | # #?????##;| @ #??????????? | | # #??????#; #??????????? | | # #??????#; #??????????? | | # #??????#; =] #??????????? | | # #??????## =] #??????????? | | # #??????? ]] #??????????? | | / #??????## #??????????? | | # #???????# #??????????? | | # #???????# !!= +??????????? | | # #???????# !! #??????????? | | # #???????# != #??????????? | | ###########+###??????# #??????????? | | ##+##### #??????????? | | = #??????????? | | +??????????? | | ##BB????????????? | | ###########???????????????? | | ######### #???? ??????????????????? | | ????????# #??"" ??????????????????? | | ????????# # """ ?????????????????? | | ????????+ + """ ?????????????????? | | ????????# # ]] #???????????????? | | ????????# #?? ]! #???????????????? | | ????????# #???? #???????????????? | | ????????# #?????? #???????????????? | +----------------------------------------------------+ Best States ------------- Heat Dissipation 41 Energy Generation 23 Energy Capacity 215 Matter Stores 200 Matter Capacity 200 Sight Range 16 Terrain Scan Density 10 Additional Mass Support 6 Armor Coverage 150 Resistance: KI 25 Resistance: EX 50 Resistance: I 25 Phase Shifting 5 Evasion (%) 63 Targeting Accuracy 10 Recoil Reduction 2 Offensive Hacking 10 Defensive Hacking 10 Item Schematics ----------------- Imp. Light Armor Plating | -7/Factory | Extracted Imp. Deuterium Engine | -7/Factory | Extracted Hvy. Flail | -7/Factory | Extracted Trap Scanner | -7/Factory | Extracted Weapon Cycler | -7/Factory | Extracted Robot Schematics ------------------ None Fabricated ------------ Nothing Alien Tech Used ----------------- None Achievements -------------- None Challenges ------------ None Polymind | -11 -10 -10 -10 -9 -8 -7 -7 -6 -6 -6 -5 -5 -4 ---------- Run | Yrd Mat Min Exi Min Mat Fac DSF Fac Was Fac Fac DSF Fac Hosts 9 | . 2 . . 1 1 1 . . . 2 . . 2 Combat Hostiles 5 | . 1 . . 1 1 . . . . 1 . . 1 Allies . | . . . . . . . . . . . . . . Unique Host Classes 9 | . 2 . . 1 1 1 . . . 2 . . 2 Average Host Suspicion 66 | . 60 42 . 94 74 78 . . . 99 21 59 74 Unsuspicious Activity 407 | . 2 . . 38 334 3 . . . 3 5 . 22 Returns to Shadow 2 | . . . . 1 1 . . . . . . . . Fuzzy Dispatches 1 | . . . . . . . . . . . . . 1 Protomatter Created 260 | . 12 . . 63 159 . . . . 26 . . . Used 158 | . 35 . . 16 23 7 . . . 58 . . 19 Decayed 29 | . . . . 16 13 . . . . . . . . Highest Spend 51 | . 30 . . 16 23 7 . . . 51 . . 14 Top 5 Hosts by Kills: Y-45 Defender (-8/Materials: 12) G-47 Trooper (-10/Materials: 6) H-66 Slayer (-6/Factory: 4) as-29615 (-9/Mines: 2) R-10 Processor (-4/Factory: 2) Game ------ Seed ExoskeletonAssaultRipper Manual? 0 Play Time 00:22:44 Cumulative 698.4 hours Start 2024.03.08 @ 16:40:31 End 2024.03.08 @ 16:59:34 Sessions 1 Manual Loads 0 Difficulty Rogue Special Mode Winter2022/Polymind Game No. 730 Rogue 455 Adventurer 123 Explorer 152 Win Type - Total 26 Types 20/0/4/1/0/0/0/1/0 Lore% 83 Gallery% 91 Achievement% 76 Wizard Run 0 Options --------- Layout 0 ASCII 0 Keyboard 1 Movement Numpad Keybinds 0 Fullscreen 2 Font 18/Terminus Map View 76x50 Zoom Use 0% Tactical HUD 1 Map Filters NONE Filters NONE Steam 1 RUN: 7334794d-1008-4fbe-95c3-036b570764c5